[Event "US Open 2021 6-Day and 4-Day Schedule"]
[Site "Crowne Plaza Cherry Hill, United States"]
[Date "????.??.??"]
[Round "3.1"]
[White "Kelley, Deshawn"]
[Black "Nyzhyk, Illia"]
[Result "0-1"]
[TimeControl "40/100;SD/30;+30"]
[BlackTitle "GM"]
[WhiteElo "2192"]
[BlackElo "2778"]

1. e4 {[%clk 01:40:55]} c6 {[%clk 01:40:32]} {[%emt 00:00:04]} 2. d4 {[%clk
01:40:17]} d5 {[%clk 01:40:56]} 3. e5 {[%clk 01:40:38]} Bf5 {[%clk 01:41:20]} 4.
h4 {[%clk 01:40:57]} h5 {[%clk 01:41:28]} 5. Nf3 {[%clk 01:40:27]} e6 {[%clk
01:41:47]} {[%emt 00:00:04]} 6. Bd3 {[%clk 01:40:13]} Ne7 {[%clk 01:41:51]} 7.
c3 {[%clk 01:35:57]} Bxd3 {[%clk 01:41:59]} 8. Qxd3 {[%clk 01:36:25]} Nf5
{[%clk 01:42:21]} 9. a4 {[%clk 01:35:49]} a6 {[%clk 01:40:23]} {[%emt
00:00:13]} 10. a5 {[%clk 01:35:07]} c5 {[%clk 01:40:42]} 11. dxc5 {[%clk
01:34:45]} Bxc5 {[%clk 01:41:06]} 12. g3 {[%clk 01:29:28]} {[%emt 00:03:11]}
Nc6 {[%clk 01:41:06]} {[%emt 00:00:44]} 13. Nbd2 {[%clk 01:28:45]} {[%emt
00:00:57]} Qc7 {[%clk 01:22:35]} {[%emt 00:19:10]} 14. Qe2 {[%clk 01:28:19]}
{[%emt 00:01:26]} Ba7 {[%clk 01:23:02]} 15. Nb3 {[%clk 01:26:16]} {[%emt
00:01:55]} Nce7 {[%clk 01:22:48]} {[%emt 00:01:36]} 16. Kf1 {[%clk 01:19:31]}
{[%emt 00:06:25]} Rc8 {[%clk 01:23:17]} {[%emt 00:00:55]} 17. Kg2 {[%clk
01:17:36]} {[%emt 00:01:58]} Qc4 {[%clk 01:23:45]} {[%emt 00:00:04]} 18. Qxc4
{[%clk 01:15:39]} {[%emt 00:02:10]} Rxc4 {[%clk 01:24:11]} {[%emt 00:00:07]} 19.
Bg5 {[%clk 01:11:14]} {[%emt 00:05:24]} O-O {[%clk 01:24:30]} 20. Nbd2 {[%clk
01:07:26]} {[%emt 00:03:44]} Rc7 {[%clk 01:24:39]} {[%emt 00:00:26]} 21. Bxe7
{[%clk 01:04:18]} {[%emt 00:03:52]} Nxe7 {[%clk 01:24:48]} {[%emt 00:00:05]} 22.
Rhe1 {[%clk 01:03:54]} {[%emt 00:00:53]} Rfc8 {[%clk 01:25:07]} {[%emt
00:00:28]} 23. Re2 {[%clk 01:02:27]} {[%emt 00:02:25]} Nf5 {[%clk 01:25:21]} 24.
Ne1 {[%clk 01:02:01]} {[%emt 00:00:46]} Rc5 {[%clk 01:18:47]} {[%emt 00:06:49]}
25. Nd3 {[%clk 00:54:32]} {[%emt 00:07:58]} Rb5 {[%clk 01:19:15]} {[%emt
00:00:36]} 26. Ra3 {[%clk 00:53:18]} {[%emt 00:01:23]} Bc5 {[%clk 01:19:43]} 27.
Ra4 {[%clk 00:43:21]} {[%emt 00:10:14]} Be7 {[%clk 01:19:00]} {[%emt 00:01:21]}
28. Re1 {[%clk 00:40:36]} {[%emt 00:03:06]} Bd8 {[%clk 01:16:54]} {[%emt
00:02:57]} 29. Rea1 {[%clk 00:40:46]} {[%emt 00:00:05]} f6 {[%clk 01:17:23]}
{[%emt 00:00:03]} 30. R1a2 {[%clk 00:40:04]} {[%emt 00:01:13]} Kf7 {[%clk
01:16:51]} {[%emt 00:01:01]} 31. exf6 {[%clk 00:29:39]} {[%emt 00:10:58]} gxf6
{[%clk 01:17:05]} {[%emt 00:00:12]} 32. R4a3 {[%clk 00:28:16]} {[%emt
00:02:03]} e5 {[%clk 01:15:00]} {[%emt 00:02:56]} 33. b4 {[%clk 00:27:38]}
{[%emt 00:00:33]} Be7 {[%clk 01:14:59]} {[%emt 00:00:31]} 34. Ne1 {[%clk
00:21:53]} {[%emt 00:06:12]} d4 {[%clk 01:14:49]} {[%emt 00:00:51]} 35. c4
{[%clk 00:20:43]} {[%emt 00:02:05]} Rxb4 {[%clk 01:15:08]} 36. Nc2 {[%clk
00:20:57]} Rbxc4 {[%clk 01:15:19]} {[%emt 00:00:13]} 37. Nxc4 {[%clk 00:21:06]}
{[%emt 00:00:27]} Rxc4 {[%clk 01:15:46]} 38. Rb3 {[%clk 00:20:07]} {[%emt
00:01:34]} Nd6 {[%clk 01:16:03]} {[%emt 00:00:04]} 39. Nb4 {[%clk 00:18:38]}
{[%emt 00:01:59]} Nb5 {[%clk 01:15:31]} {[%emt 00:01:19]} 40. Nd5 {[%clk
00:48:14]} {[%emt 00:00:36]} Bd8 {[%clk 01:44:09]} {[%emt 00:02:14]} 41. Rab2
{[%clk 00:41:47]} {[%emt 00:06:44]} Rc5 {[%clk 01:43:49]} {[%emt 00:00:51]} 42.
Nb6 {[%clk 00:41:46]} {[%emt 00:00:22]} e4 {[%clk 01:43:42]} {[%emt 00:00:39]}
43. Rd2 {[%clk 00:41:23]} {[%emt 00:00:49]} f5 {[%clk 01:42:36]} {[%emt
00:01:51]} 44. Rxb5 {[%clk 00:41:17]} {[%emt 00:00:23]} Rxb5 {[%clk 01:43:01]}
{[%emt 00:00:18]} 0-1

[Event "US Open 2021 6-Day and 4-Day Schedule"]
[Site "Crowne Plaza Cherry Hill, United States"]
[Date "????.??.??"]
[Round "3.2"]
[White "Cordova Daza, Emilio"]
[Black "Sriniaiyer, Sudarshan"]
[Result "1-0"]
[TimeControl "40/100;SD/30;+30"]
[WhiteTitle "GM"]
[WhiteElo "2646"]
[BlackElo "2184"]

1. d4 {[%clk 01:40:40]} d5 {[%clk 01:40:29]} 2. Nf3 {[%clk 01:40:55]} Nf6
{[%clk 01:40:33]} 3. c4 {[%clk 01:40:49]} e6 {[%clk 01:40:51]} 4. e3 {[%clk
01:40:22]} a6 {[%clk 01:36:08]} 5. b3 {[%clk 01:40:12]} b6 {[%clk 01:26:26]} 6.
Bd3 {[%clk 01:39:58]} Bb7 {[%clk 01:25:52]} 7. O-O {[%clk 01:40:04]} Bd6 {[%clk
01:25:03]} 8. Bb2 {[%clk 01:40:18]} O-O {[%clk 01:24:39]} 9. Nc3 {[%clk
01:40:32]} Nbd7 {[%clk 01:22:57]} {[%emt 00:01:45]} 10. Rc1 {[%clk 01:39:58]}
{[%emt 00:01:46]} Qe7 {[%clk 01:16:20]} {[%emt 00:06:27]} 11. Qc2 {[%clk
01:35:49]} {[%emt 00:04:39]} c5 {[%clk 01:14:12]} {[%emt 00:03:04]} 12. cxd5
{[%clk 01:34:08]} {[%emt 00:01:42]} exd5 {[%clk 01:14:11]} {[%emt 00:01:20]} 13.
Bf5 {[%clk 01:33:32]} {[%emt 00:00:17]} Ne4 {[%clk 01:02:47]} {[%emt 00:11:55]}
14. dxc5 {[%clk 01:30:12]} {[%emt 00:04:06]} bxc5 {[%clk 00:52:48]} {[%emt
00:10:12]} 15. Nxe4 {[%clk 01:28:11]} {[%emt 00:02:33]} dxe4 {[%clk 00:53:11]}
{[%emt 00:00:15]} 16. Nd2 {[%clk 01:28:27]} {[%emt 00:00:06]} Rfe8 {[%clk
00:47:26]} {[%emt 00:06:23]} 17. Rfd1 {[%clk 01:22:12]} {[%emt 00:06:37]} Nf6
{[%clk 00:41:49]} {[%emt 00:06:30]} 18. Bxf6 {[%clk 01:19:32]} {[%emt
00:03:07]} Qxf6 {[%clk 00:39:11]} {[%emt 00:02:58]} 19. Bxe4 {[%clk 01:19:00]}
{[%emt 00:00:58]} Bxh2+ {[%clk 00:37:53]} {[%emt 00:01:39]} 20. Kxh2 {[%clk
01:19:23]} {[%emt 00:00:20]} Bxe4 {[%clk 00:37:33]} {[%emt 00:00:50]} 21. Nxe4
{[%clk 01:19:47]} Qh4+ {[%clk 00:38:01]} 22. Kg1 {[%clk 01:20:04]} {[%emt
00:00:06]} Rxe4 {[%clk 00:32:41]} {[%emt 00:06:20]} 23. Qxc5 {[%clk 01:19:01]}
{[%emt 00:01:10]} g6 {[%clk 00:25:24]} {[%emt 00:08:03]} 24. Qc6 {[%clk
01:12:50]} {[%emt 00:06:33]} Ree8 {[%clk 00:24:52]} {[%emt 00:01:24]} 25. Rd7
{[%clk 01:11:08]} {[%emt 00:02:02]} Qg4 {[%clk 00:18:27]} {[%emt 00:06:45]} 26.
Rc4 {[%clk 01:07:54]} {[%emt 00:03:27]} Qe6 {[%clk 00:18:31]} {[%emt 00:00:27]}
27. Qxe6 {[%clk 01:08:02]} {[%emt 00:00:31]} Rxe6 {[%clk 00:19:00]} 28. Rf4
{[%clk 01:08:10]} {[%emt 00:00:21]} Rf8 {[%clk 00:19:24]} {[%emt 00:00:21]} 29.
g4 {[%clk 01:07:37]} {[%emt 00:01:00]} g5 {[%clk 00:18:54]} {[%emt 00:01:48]}
30. Rc4 {[%clk 01:03:48]} {[%emt 00:03:11]} Rf6 {[%clk 00:18:17]} {[%emt
00:01:23]} 31. Kg2 {[%clk 01:03:07]} {[%emt 00:00:56]} Re8 {[%clk 00:17:52]}
{[%emt 00:01:21]} 32. b4 {[%clk 00:59:26]} {[%emt 00:03:45]} h6 {[%clk
00:16:21]} {[%emt 00:02:10]} 33. a3 {[%clk 00:58:53]} {[%emt 00:01:03]} Re5
{[%clk 00:15:14]} {[%emt 00:01:38]} 34. Rd8+ {[%clk 00:58:30]} {[%emt
00:00:43]} Kg7 {[%clk 00:15:29]} {[%emt 00:00:44]} 35. Rcc8 {[%clk 00:58:39]}
Rb6 {[%clk 00:13:06]} {[%emt 00:02:54]} 36. Rg8+ {[%clk 00:57:42]} {[%emt
00:01:24]} Kf6 {[%clk 00:13:28]} {[%emt 00:00:08]} 37. Rh8 {[%clk 00:58:07]}
{[%emt 00:00:04]} Ke7 {[%clk 00:11:56]} {[%emt 00:02:00]} 38. Rce8+ {[%clk
00:56:05]} {[%emt 00:02:36]} Kd6 {[%clk 00:10:54]} {[%emt 00:01:52]} 39. Rxh6+
{[%clk 00:56:29]} Re6 {[%clk 00:11:23]} 40. Rexe6+ {[%clk 01:26:36]} {[%emt
00:00:06]} fxe6 {[%clk 00:41:51]} 41. Rh5 {[%clk 01:26:53]} {[%emt 00:00:49]}
Kd5 {[%emt 00:00:03]} 1-0

[Event "US Open 2021 6-Day and 4-Day Schedule"]
[Site "Crowne Plaza Cherry Hill, United States"]
[Date "????.??.??"]
[Round "3.3"]
[White "Benjamin, Joel"]
[Black "Guha, Eshan"]
[Result "1-0"]
[TimeControl "40/100;SD/30;+30"]
[WhiteTitle "GM"]
[WhiteElo "2586"]
[BlackElo "2129"]

1. d4 {[%clk 01:40:57]} Nf6 {[%clk 01:40:54]} {[%emt 00:00:58]} 2. Nf3 {[%clk
01:41:17]} e6 {[%clk 01:40:59]} 3. c4 {[%clk 01:41:41]} d5 {[%clk 01:41:10]} 4.
Nc3 {[%clk 01:42:01]} Be7 {[%clk 01:41:04]} 5. Bg5 {[%clk 01:41:50]} O-O {[%clk
01:39:21]} 6. e3 {[%clk 01:42:09]} Nbd7 {[%clk 01:36:33]} 7. Qc2 {[%clk
01:40:04]} h6 {[%clk 01:35:43]} 8. Bh4 {[%clk 01:35:34]} Re8 {[%clk 01:20:13]}
{[%emt 00:10:26]} 9. Rd1 {[%clk 01:28:21]} {[%emt 00:07:17]} c6 {[%clk
01:16:13]} {[%emt 00:04:25]} 10. Bd3 {[%clk 01:24:24]} {[%emt 00:04:26]} Qc7
{[%clk 01:08:23]} {[%emt 00:08:13]} 11. O-O {[%clk 01:23:22]} {[%emt 00:01:38]}
dxc4 {[%clk 01:07:46]} {[%emt 00:01:05]} 12. Bxc4 {[%clk 01:23:43]} {[%emt
00:00:08]} b5 {[%clk 00:59:16]} {[%emt 00:08:55]} 13. Be2 {[%clk 01:18:12]}
{[%emt 00:06:04]} b4 {[%clk 00:52:14]} {[%emt 00:07:32]} 14. Na4 {[%clk
01:16:26]} {[%emt 00:02:27]} Bb7 {[%clk 00:51:29]} {[%emt 00:01:07]} 15. Rc1
{[%clk 01:02:51]} {[%emt 00:14:01]} Qa5 {[%clk 00:49:55]} {[%emt 00:02:11]} 16.
Nd2 {[%clk 00:56:58]} {[%emt 00:06:16]} e5 {[%clk 00:43:36]} {[%emt 00:07:22]}
17. Nc4 {[%clk 00:55:02]} {[%emt 00:01:53]} Qd5 {[%clk 00:43:28]} {[%emt
00:00:46]} 18. dxe5 {[%clk 00:51:51]} {[%emt 00:03:36]} Nxe5 {[%clk 00:43:05]}
{[%emt 00:00:50]} 19. Bxf6 {[%clk 00:45:10]} {[%emt 00:07:15]} Bxf6 {[%clk
00:42:38]} {[%emt 00:00:54]} 20. Rfd1 {[%clk 00:45:08]} {[%emt 00:00:31]} Nxc4
{[%clk 00:33:50]} {[%emt 00:09:21]} 21. Rxd5 {[%clk 00:42:55]} {[%emt
00:02:57]} cxd5 {[%clk 00:34:15]} 22. Nc5 {[%clk 00:40:16]} {[%emt 00:03:19]}
Bc6 {[%clk 00:32:36]} {[%emt 00:01:51]} 23. Nd3 {[%clk 00:37:52]} {[%emt
00:02:50]} Bb7 {[%clk 00:28:43]} {[%emt 00:04:23]} 24. b3 {[%clk 00:35:55]}
{[%emt 00:02:25]} Na3 {[%clk 00:27:55]} {[%emt 00:01:19]} 25. Qc7 {[%clk
00:34:52]} {[%emt 00:01:36]} Ba6 {[%clk 00:13:27]} {[%emt 00:15:08]} 26. Qa5
{[%clk 00:34:59]} {[%emt 00:00:10]} Bxd3 {[%clk 00:12:28]} {[%emt 00:01:29]} 27.
Bxd3 {[%clk 00:35:25]} {[%emt 00:00:27]} Rab8 {[%clk 00:10:01]} {[%emt
00:02:47]} 28. Kf1 {[%clk 00:30:03]} {[%emt 00:05:44]} Bg5 {[%clk 00:05:17]}
{[%emt 00:05:09]} 29. Rc6 {[%clk 00:26:46]} {[%emt 00:03:46]} Red8 {[%clk
00:05:01]} {[%emt 00:00:49]} 30. Rc7 {[%clk 00:24:37]} {[%emt 00:02:45]} Rf8
{[%clk 00:03:25]} {[%emt 00:01:57]} 31. Qxd5 {[%clk 00:18:09]} {[%emt
00:06:57]} Rb6 {[%clk 00:01:49]} {[%emt 00:02:08]} 32. Rxa7 {[%clk 00:17:22]}
{[%emt 00:01:15]} 1-0

[Event "US Open 2021 6-Day and 4-Day Schedule"]
[Site "Crowne Plaza Cherry Hill, United States"]
[Date "????.??.??"]
[Round "3.4"]
[White "Levine, Joseph"]
[Black "Sorokin, Aleksey"]
[Result "0-1"]
[TimeControl "40/100;SD/30;+30"]
[BlackTitle "FM"]
[WhiteElo "2187"]
[BlackElo "2628"]

1. e4 {[%clk 01:40:52]} c5 {[%clk 01:39:24]} 2. Nf3 {[%clk 01:41:20]} d6 {[%clk
01:39:46]} 3. d4 {[%clk 01:41:47]} cxd4 {[%clk 01:40:10]} {[%emt 00:02:20]} 4.
Nxd4 {[%clk 01:42:12]} Nf6 {[%clk 01:40:35]} 5. Nc3 {[%clk 01:42:38]} a6 {[%clk
01:41:01]} 6. Be3 {[%clk 01:42:26]} e5 {[%clk 01:41:24]} 7. Nb3 {[%clk
01:42:52]} Be6 {[%clk 01:41:48]} 8. f3 {[%clk 01:43:18]} h5 {[%clk 01:42:10]} 9.
Qd2 {[%clk 01:43:23]} Nbd7 {[%clk 01:42:31]} 10. Be2 {[%clk 01:42:37]} Be7
{[%clk 01:41:31]} 11. O-O-O {[%clk 01:41:30]} Rc8 {[%clk 01:41:34]} 12. Kb1
{[%clk 01:37:30]} b5 {[%clk 01:40:59]} 13. g3 {[%clk 01:35:35]} Nb6 {[%clk
01:39:30]} 14. h3 {[%clk 01:33:34]} Nc4 {[%clk 01:34:50]} {[%emt 00:04:57]} 15.
Bxc4 {[%clk 01:33:03]} {[%emt 00:00:43]} Bxc4 {[%clk 01:35:09]} {[%emt
00:00:12]} 16. g4 {[%clk 01:32:05]} {[%emt 00:01:56]} b4 {[%clk 01:35:21]}
{[%emt 00:00:03]} 17. Ne2 {[%clk 01:31:24]} {[%emt 00:00:53]} a5 {[%clk
01:34:43]} {[%emt 00:01:38]} 18. g5 {[%clk 01:29:25]} {[%emt 00:02:01]} Nd7
{[%clk 01:34:24]} {[%emt 00:00:47]} 19. f4 {[%clk 01:25:03]} {[%emt 00:04:52]}
Bxe2 {[%clk 01:30:20]} {[%emt 00:04:34]} 20. Qxe2 {[%clk 01:25:26]} {[%emt
00:00:25]} a4 {[%clk 01:30:42]} 21. Nc1 {[%clk 01:24:08]} {[%emt 00:01:36]} a3
{[%clk 01:30:40]} {[%emt 00:00:52]} 22. b3 {[%clk 01:23:51]} {[%emt 00:00:30]}
exf4 {[%clk 01:23:41]} {[%emt 00:07:44]} 23. Bd4 {[%clk 01:17:53]} {[%emt
00:06:12]} Qc7 {[%clk 01:21:42]} {[%emt 00:02:29]} 24. Nd3 {[%clk 01:12:16]}
{[%emt 00:06:20]} f3 {[%clk 01:21:28]} {[%emt 00:00:31]} 25. Qf2 {[%clk
01:07:55]} {[%emt 00:05:12]} d5 {[%clk 01:21:19]} {[%emt 00:00:17]} 26. exd5
{[%clk 01:05:40]} {[%emt 00:02:45]} O-O {[%clk 01:21:29]} {[%emt 00:00:48]} 27.
Rhg1 {[%clk 00:59:35]} {[%emt 00:06:08]} Bd6 {[%clk 01:20:27]} {[%emt
00:01:32]} 28. Rd2 {[%clk 00:48:24]} {[%emt 00:12:04]} Ne5 {[%clk 01:17:56]}
{[%emt 00:02:37]} 29. Rgd1 {[%clk 00:26:54]} {[%emt 00:22:00]} Rfe8 {[%clk
01:16:22]} {[%emt 00:02:39]} 30. Bb6 {[%clk 00:21:50]} {[%emt 00:05:01]} Qe7
{[%clk 01:13:06]} {[%emt 00:03:59]} 31. Ne1 {[%clk 00:08:43]} {[%emt 00:13:44]}
Qxg5 {[%clk 01:10:43]} {[%emt 00:02:29]} 32. Nxf3 {[%clk 00:07:45]} {[%emt
00:01:28]} Nxf3 {[%clk 01:11:06]} {[%emt 00:00:41]} 33. Qxf3 {[%clk 00:08:09]}
Rc3 {[%clk 01:11:10]} {[%emt 00:00:07]} 34. Rd3 {[%clk 00:05:14]} {[%emt
00:03:48]} Rxd3 {[%clk 01:11:36]} 35. Qxd3 {[%clk 00:05:31]} {[%emt 00:00:22]}
h4 {[%clk 01:12:02]} 36. c4 {[%clk 00:04:44]} {[%emt 00:00:51]} bxc3 {[%clk
01:09:31]} {[%emt 00:03:00]} 37. Bd4 {[%clk 00:04:09]} {[%emt 00:00:58]} Qg3
{[%clk 01:05:04]} {[%emt 00:04:58]} 38. Qf5 {[%clk 00:01:46]} {[%emt 00:03:14]}
Re1 {[%clk 01:04:59]} {[%emt 00:00:14]} 39. Kc1 {[%clk 00:00:35]} {[%emt
00:01:46]} Bf4+ {[%clk 01:05:08]} {[%emt 00:00:57]} 40. Kc2 {[%clk 00:30:56]}
Re2+ {[%clk 01:35:24]} 41. Kb1 {[%clk 00:31:04]} {[%emt 00:00:09]} c2+ {[%clk
01:35:38]} {[%emt 00:00:14]} 42. Ka1 {[%clk 00:31:29]} {[%emt 00:00:03]}
cxd1=Q+ {[%clk 01:35:35]} {[%emt 00:00:35]} 43. Qb1 {[%clk 00:31:56]} Qxd4+
{[%clk 01:35:46]} {[%emt 00:00:17]} 44. Qb2 {[%clk 00:32:24]} {[%emt 00:00:41]}
0-1

[Event "US Open 2021 6-Day and 4-Day Schedule"]
[Site "Crowne Plaza Cherry Hill, United States"]
[Date "????.??.??"]
[Round "3.5"]
[White "Sho, Glashausser"]
[Black "Matviishen, Viktor"]
[Result "1-0"]
[TimeControl "40/100;SD/30;+30"]
[BlackTitle "IM"]
[WhiteElo "2133"]
[BlackElo "2575"]

1. d4 {[%clk 01:40:55]} d5 {[%clk 01:37:40]} 2. c4 {[%clk 01:41:18]} c6 {[%clk
01:38:08]} 3. Nf3 {[%clk 01:41:39]} Nf6 {[%clk 01:38:32]} 4. Nc3 {[%clk
01:41:57]} e6 {[%clk 01:38:59]} 5. Bg5 {[%clk 01:42:13]} h6 {[%clk 01:39:25]} 6.
Bxf6 {[%clk 01:42:25]} Qxf6 {[%clk 01:39:50]} 7. e3 {[%clk 01:42:42]} Nd7
{[%clk 01:40:08]} 8. Bd3 {[%clk 01:42:52]} g6 {[%clk 01:38:51]} 9. O-O {[%clk
01:43:05]} dxc4 {[%clk 01:39:05]} 10. Bxc4 {[%clk 01:43:16]} Bg7 {[%clk
01:39:30]} 11. e4 {[%clk 01:35:48]} O-O {[%clk 01:35:41]} {[%emt 00:03:52]} 12.
e5 {[%clk 01:30:52]} {[%emt 00:05:16]} Qe7 {[%clk 01:36:07]} {[%emt 00:00:31]}
13. Re1 {[%clk 01:28:14]} {[%emt 00:03:03]} Rd8 {[%clk 01:14:45]} {[%emt
00:21:48]} 14. Qc2 {[%clk 01:14:38]} {[%emt 00:13:49]} Nb6 {[%clk 01:14:15]}
{[%emt 00:01:28]} 15. Ne4 {[%clk 01:13:22]} {[%emt 00:01:28]} Bd7 {[%clk
01:05:08]} {[%emt 00:09:34]} 16. Nd6 {[%clk 01:06:45]} {[%emt 00:07:02]} Be8
{[%clk 01:05:04]} {[%emt 00:01:22]} 17. a4 {[%clk 01:03:03]} {[%emt 00:03:44]}
a5 {[%clk 01:00:31]} {[%emt 00:05:22]} 18. Qb3 {[%clk 00:53:43]} {[%emt
00:09:14]} Qc7 {[%clk 00:54:20]} {[%emt 00:06:47]} 19. Rac1 {[%clk 00:49:24]}
{[%emt 00:04:38]} Nxc4 {[%clk 00:48:09]} {[%emt 00:06:36]} 20. Rxc4 {[%clk
00:46:58]} {[%emt 00:03:11]} Rab8 {[%clk 00:40:35]} {[%emt 00:08:14]} 21. Qc3
{[%clk 00:45:07]} {[%emt 00:02:20]} Ra8 {[%clk 00:25:31]} {[%emt 00:15:13]} 22.
Ne4 {[%clk 00:31:54]} {[%emt 00:13:42]} Qe7 {[%clk 00:24:52]} {[%emt 00:01:10]}
23. Rc1 {[%clk 00:29:30]} {[%emt 00:02:53]} Rd5 {[%clk 00:17:58]} {[%emt
00:07:24]} 24. Qe3 {[%clk 00:28:15]} {[%emt 00:01:51]} b5 {[%clk 00:12:29]}
{[%emt 00:06:09]} 25. axb5 {[%clk 00:27:28]} {[%emt 00:01:06]} cxb5 {[%clk
00:12:56]} 26. Rc7 {[%clk 00:26:02]} {[%emt 00:02:04]} Rd7 {[%clk 00:13:24]} 27.
R7c5 {[%clk 00:22:14]} {[%emt 00:04:44]} b4 {[%clk 00:12:50]} {[%emt 00:00:57]}
28. Qf4 {[%clk 00:15:48]} {[%emt 00:06:52]} g5 {[%clk 00:10:23]} {[%emt
00:02:35]} 29. Qg4 {[%clk 00:12:43]} {[%emt 00:03:35]} a4 {[%clk 00:02:44]}
{[%emt 00:08:26]} 30. h4 {[%clk 00:12:47]} {[%emt 00:00:07]} a3 {[%clk
00:03:11]} {[%emt 00:00:37]} 31. hxg5 {[%clk 00:09:44]} {[%emt 00:03:18]} hxg5
{[%clk 00:02:37]} {[%emt 00:01:24]} 32. bxa3 {[%clk 00:05:58]} {[%emt
00:03:46]} b3 {[%clk 00:03:07]} 33. Nf6+ {[%clk 00:05:18]} {[%emt 00:01:22]}
Bxf6 {[%clk 00:03:22]} 34. exf6 {[%clk 00:05:45]} Qxf6 {[%clk 00:03:48]} {[%emt
00:00:10]} 35. Rxg5+ {[%clk 00:04:50]} {[%emt 00:01:16]} Kf8 {[%clk 00:04:12]}
{[%emt 00:00:11]} 36. d5 {[%clk 00:01:45]} {[%emt 00:03:32]} Rb8 {[%clk
00:03:36]} {[%emt 00:01:04]} 37. Ne5 {[%clk 00:00:40]} {[%emt 00:01:36]} Rdb7
{[%clk 00:00:56]} {[%emt 00:03:13]} 38. Rg8+ {[%clk 00:00:38]} {[%emt
00:00:29]} Ke7 {[%clk 00:01:25]} 39. d6+ {[%clk 00:01:00]} {[%emt 00:00:16]}
Kxd6 {[%clk 00:01:48]} {[%emt 00:00:10]} 40. Qd4+ {[%clk 00:31:17]} {[%emt
00:00:19]} Ke7 41. Ng6+ {[%clk 00:29:48]} {[%emt 00:01:46]} fxg6 {[%clk
00:32:26]} {[%emt 00:01:00]} 42. Qc5+ {[%clk 00:28:36]} {[%emt 00:01:01]} 1-0

[Event "US Open 2021 6-Day and 4-Day Schedule"]
[Site "Crowne Plaza Cherry Hill, United States"]
[Date "????.??.??"]
[Round "3.6"]
[White "Molner, Mackenzie"]
[Black "Ling, Evan Maxwell"]
[Result "1-0"]
[TimeControl "40/100;SD/30;+30"]
[WhiteTitle "GM"]
[WhiteElo "2517"]
[BlackElo "2111"]

1. e4 {[%clk 01:40:58]} c5 {[%clk 01:34:43]} 2. Nf3 {[%clk 01:41:21]} d6 {[%clk
01:34:56]} 3. d4 {[%clk 01:40:50]} cxd4 {[%clk 01:35:20]} 4. Nxd4 {[%clk
01:41:16]} Nf6 {[%clk 01:35:45]} 5. Nc3 {[%clk 01:41:40]} a6 {[%clk 01:36:12]}
6. Bg5 {[%clk 01:41:01]} Nbd7 {[%clk 01:35:57]} 7. f4 {[%clk 01:39:11]} Qb6
{[%clk 01:24:18]} {[%emt 00:00:29]} 8. Qd2 {[%clk 01:34:56]} {[%emt 00:03:52]}
Qxb2 {[%clk 01:19:31]} {[%emt 00:05:16]} 9. Rb1 {[%clk 01:35:09]} {[%emt
00:00:20]} Qa3 {[%clk 01:13:24]} {[%emt 00:06:45]} 10. Bxf6 {[%clk 01:33:30]}
{[%emt 00:02:43]} Nxf6 {[%clk 01:09:51]} {[%emt 00:03:32]} 11. e5 {[%clk
01:32:59]} {[%emt 00:01:15]} dxe5 {[%clk 01:07:20]} {[%emt 00:02:46]} 12. fxe5
{[%clk 01:33:23]} Ng4 {[%clk 01:07:32]} {[%emt 00:01:10]} 13. Nd5 {[%clk
01:30:18]} {[%emt 00:03:20]} Qc5 {[%clk 01:07:31]} 14. Nb3 {[%clk 01:29:34]}
{[%emt 00:01:00]} Qc6 {[%clk 01:06:32]} {[%emt 00:01:30]} 15. Na5 {[%clk
01:27:33]} {[%emt 00:03:08]} Qd7 {[%clk 01:05:52]} {[%emt 00:00:46]} 16. Nc4
{[%clk 01:15:39]} {[%emt 00:12:32]} Rb8 {[%clk 01:04:18]} {[%emt 00:01:42]} 17.
Qa5 {[%clk 01:07:35]} {[%emt 00:09:11]} e6 {[%clk 01:02:25]} {[%emt 00:01:49]}
18. Nc7+ {[%clk 01:06:48]} {[%emt 00:02:21]} Ke7 {[%clk 00:59:56]} {[%emt
00:02:23]} 19. Rd1 {[%clk 01:05:55]} {[%emt 00:01:16]} Qxd1+ {[%clk 00:59:48]}
{[%emt 00:00:13]} 20. Kxd1 {[%clk 01:06:19]} {[%emt 00:00:38]} Nf2+ {[%clk
01:00:15]} 21. Ke1 {[%clk 01:05:47]} {[%emt 00:01:02]} Nxh1 {[%clk 01:00:37]}
22. Nxa6 {[%clk 01:03:30]} {[%emt 00:03:08]} Ra8 {[%clk 00:58:55]} {[%emt
00:01:31]} 23. Qc7+ {[%clk 01:03:19]} {[%emt 00:00:41]} Ke8 {[%clk 00:56:48]}
{[%emt 00:02:39]} 24. Nd6+ {[%clk 01:02:15]} {[%emt 00:01:56]} Bxd6 {[%clk
00:57:10]} 1-0